bitfinex-derivatives/quotes_BTCF0:USTF0_20230901
["timestamp","ask_amount","ask_price","bid_price","bid_amount"]
[1693588822538,0.33356949,25667.0,25666.0,2.2182405]
[1693588822723,0.33656949,25667.0,25666.0,2.2552405]
[1693588822928,0.33656949,25667.0,25666.0,1.1198]
[1693588823534,0.34046949,25667.0,25666.0,1.1038]
[1693588823932,0.34046949,25667.0,25666.0,1.1894405]
[1693588824132,0.34046949,25667.0,25666.0,1.1038]
[1693588824537,0.36046949,25667.0,25666.0,0.074]
[1693588824734,0.3039,25661.0,25660.0,1.1927]
[1693588824937,0.3239,25661.0,25660.0,1.0298]
[1693588825240,0.0039,25659.0,25658.0,0.1595]
[1693588825429,0.0039,25658.0,25657.0,1.0298]
[1693588825628,0.3039,25658.0,25657.0,1.0298]
[1693588826737,0.0039,25657.0,25656.0,1.1154405]
[1693588826931,0.0039,25657.0,25656.0,1.0458]
[1693588827137,0.0039,25657.0,25656.0,1.1314405]
[1693588827340,0.3069,25658.0,25656.0,1.1314405]
[1693588827635,0.3069,25658.0,25657.0,1.0298]
[1693588827636,0.303,25658.0,25657.0,1.0298]
[1693588827941,0.306,25658.0,25657.0,1.1684405]
[1693588828330,0.007,25658.0,25657.0,1.1894405]
[1693588828531,0.007,25658.0,25657.0,1.1524405]
[1693588828829,0.3,25662.0,25658.0,1.0298]
[1693588829029,0.3039,25665.0,25661.0,1.0298]
[1693588829235,0.3039,25665.0,25664.0,1.0298]
[1693588829236,0.3,25665.0,25664.0,1.0298]
[1693588829435,0.3,25665.0,25664.0,1.1154405]
[1693588829740,0.3,25665.0,25664.0,1.1354405]
[1693588830434,0.3,25665.0,25664.0,1.1514405]
[1693588830936,0.32,25665.0,25664.0,1.1514405]
[1693588831242,0.02,25665.0,25664.0,1.1514405]
[1693588831541,0.01767876,25673.0,25666.0,1.03369]
[1693588831740,0.03767876,25673.0,25667.0,1.0298]
[1693588832439,0.03767876,25673.0,25667.0,1.0458]
[1693588832835,0.07367876,25673.0,25667.0,1.0488]
[1693588833233,0.056,25673.0,25667.0,1.0488]
[1693588833429,0.056,25673.0,25670.0,1.0298]
[1693588834043,0.093,25673.0,25672.0,1.0298]
[1693588834630,0.093,25673.0,25672.0,1.1154405]
[1693588834946,0.093,25673.0,25672.0,1.1193305]
[1693588835147,0.12471498,25673.0,25672.0,1.1154405]
[1693588835438,0.12571498,25673.0,25670.0,0.003]
[1693588835645,0.12571498,25673.0,25672.0,0.003]
[1693588835840,0.08871498,25673.0,25672.0,0.003]
[1693588836033,0.23781175,25673.0,25672.0,1.0358]
[1693588836540,0.22171175,25673.0,25672.0,1.0328]
[1693588836735,0.12861498,25673.0,25672.0,1.0328]
[1693588836935,0.12861498,25673.0,25672.0,0.003]
[1693588836936,0.09261498,25673.0,25672.0,0.003]
[1693588837140,0.12861498,25673.0,25672.0,0.0916405]
[1693588837741,0.12861498,25673.0,25672.0,0.0886405]
[1693588837935,0.12861498,25673.0,25672.0,0.003]
[1693588838336,0.10861498,25673.0,25672.0,1.03669]
[1693588838639,0.12861498,25673.0,25672.0,1.0358]
[1693588839942,0.23799312,25673.0,25672.0,1.0358]
[1693588840241,0.35108989,25673.0,25672.0,1.0358]
[1693588840649,0.24171175,25673.0,25672.0,1.0358]
[1693588840851,0.10471498,25673.0,25672.0,1.1413305]
[1693588841051,0.073,25673.0,25672.0,1.1613305]
[1693588842137,0.03564418,25676.0,25675.0,0.00389]
[1693588842351,0.0039,25676.0,25675.0,1.1353305]
[1693588842738,0.0039,25677.0,25676.0,0.00389]
[1693588842941,0.0039,25677.0,25676.0,1.1193305]
[1693588843147,0.0039,25677.0,25676.0,1.1154405]
[1693588843343,0.0039,25676.0,25675.0,0.0856405]
[1693588843545,0.0039,25675.0,25674.0,1.0298]
[1693588843847,0.0239,25675.0,25674.0,1.1154405]
[1693588844352,0.0039,25675.0,25674.0,1.1154405]
[1693588844653,0.0269,25675.0,25674.0,1.1484405]
[1693588844855,0.003,25675.0,25674.0,1.1683305]
[1693588845241,0.003,25675.0,25674.0,1.1883305]
[1693588845859,0.003,25675.0,25674.0,1.1844405]
[1693588846248,0.003,25675.0,25674.0,1.4844405]
[1693588846453,0.007,25675.0,25674.0,1.5223305]
[1693588850042,0.0039,25681.0,25674.0,2.10371864]
[1693588850247,0.03061331,25685.0,25674.0,2.10371864]
[1693588850248,0.0039,25682.0,25681.0,0.00389]
[1693588850458,0.0039,25683.0,25682.0,0.00389]
[1693588850648,0.0039,25683.0,25682.0,1.03369]
[1693588850849,0.03061331,25685.0,25682.0,1.1354405]
[1693588851062,0.0039,25687.0,25684.0,1.0298]
[1693588851353,0.0039,25687.0,25686.0,1.0298]
[1693588851555,1.8112,25695.0,25686.0,1.0298]
[1693588851556,0.0039,25689.0,25686.0,1.0298]
[1693588851754,0.0039,25689.0,25688.0,1.03369]
[1693588851959,0.0039,25690.0,25689.0,0.00389]
[1693588852146,0.0039,25690.0,25689.0,1.04969]
[1693588852549,0.0039,25690.0,25689.0,1.1353305]
[1693588853253,0.05839781,25696.0,25690.0,0.00389]
[1693588853254,0.0039,25691.0,25690.0,0.00389]
[1693588853453,0.0039,25691.0,25690.0,1.1353305]
[1693588854060,0.0039,25691.0,25690.0,1.1314405]
[1693588854456,0.0039,25691.0,25690.0,1.1353305]
[1693588854960,0.037,25691.0,25690.0,1.1383305]
[1693588855261,0.037,25691.0,25690.0,1.1583305]
[1693588855466,0.074,25691.0,25690.0,1.1613305]
[1693588855848,0.0779,25691.0,25690.0,1.1413305]
[1693588856162,0.0409,25691.0,25690.0,1.1383305]
[1693588856366,0.0779,25691.0,25690.0,1.1413305]
[1693588856963,0.074,25691.0,25690.0,1.1413305]
[1693588857357,0.074,25691.0,25690.0,1.1613305]
[1693588857863,0.0039,25694.0,25690.0,1.1613305]
[1693588858054,0.0039,25694.0,25693.0,1.0298]
[1693588858460,0.0039,25694.0,25693.0,1.1314405]
[1693588858661,0.0039,25695.0,25693.0,1.1314405]
[1693588858860,0.0039,25695.0,25694.0,1.0298]
[1693588859166,0.0039,25697.0,25696.0,1.0298]
[1693588859354,0.0039,25697.0,25696.0,2.0596]
[1693588859554,0.0039,25697.0,25696.0,2.1452405]
[1693588859864,0.0039,25697.0,25696.0,2.1612405]
[1693588860258,0.0039,25698.0,25696.0,2.1612405]
[1693588860459,0.0039,25698.0,25697.0,0.0856405]
[1693588860857,0.0039,25697.0,25696.0,1.0298]
[1693588861155,0.0239,25697.0,25696.0,1.0298]
[1693588861357,0.0239,25697.0,25696.0,1.1154405]
[1693588861557,0.0039,25697.0,25696.0,1.1154405]
[1693588861955,0.0289,25698.0,25696.0,1.1314405]
[1693588862155,0.0289,25698.0,25697.0,0.0856405]
[1693588862355,0.0039,25698.0,25697.0,0.0856405]
[1693588862559,0.0039,25697.0,25696.0,1.0348]
[1693588862755,0.0239,25697.0,25696.0,1.0348]
[1693588863159,0.0039,25697.0,25696.0,1.1204405]
[1693588863350,0.0239,25697.0,25696.0,1.1204405]
[1693588863756,0.0039,25697.0,25696.0,1.1204405]
[1693588863959,0.0239,25697.0,25696.0,1.1174405]
[1693588864557,0.0239,25697.0,25696.0,1.1154405]
[1693588864758,0.0489,25697.0,25696.0,1.1184405]
[1693588865264,0.0519,25697.0,25696.0,1.1204405]
[1693588865659,0.0319,25697.0,25696.0,1.1204405]
[1693588865865,0.0519,25697.0,25696.0,1.1204405]
[1693588866066,0.0319,25697.0,25696.0,1.1204405]
[1693588866267,0.0519,25697.0,25696.0,1.1204405]
[1693588866660,0.0519,25697.0,25696.0,1.0348]
[1693588867166,0.0519,25697.0,25696.0,2.1502405]
[1693588867364,0.0519,25697.0,25696.0,0.7138405]
[1693588868770,0.25437491,25697.0,25696.0,0.005]
[1693588868975,0.25437491,25697.0,25691.0,0.6232]
[1693588868976,0.0039,25692.0,25691.0,0.6232]
[1693588869269,0.22637491,25692.0,25691.0,0.6232]
[1693588869664,0.24637491,25692.0,25691.0,0.6232]
[1693588870168,0.24937491,25692.0,25691.0,0.6602]
[1693588870367,0.25237491,25692.0,25691.0,0.6972]
[1693588870667,0.55237491,25692.0,25691.0,0.69599017]
[1693588870868,0.00389,25689.0,25688.0,0.6232]
[1693588871074,0.00389,25690.0,25689.0,0.00389]
[1693588871380,0.00389,25690.0,25689.0,0.6232]
[1693588871567,0.00389,25690.0,25689.0,0.7088405]
[1693588871762,0.00389,25690.0,25689.0,0.7127305]
[1693588871962,0.00389,25690.0,25689.0,0.7287305]
[1693588872269,0.00389,25690.0,25689.0,0.7088405]
[1693588872473,0.00389,25690.0,25689.0,0.7127305]
[1693588872975,0.00389,25690.0,25689.0,0.7248405]
[1693588873266,0.03989,25690.0,25689.0,0.7307305]
[1693588873668,0.06883229,25692.0,25690.0,0.00389]
[1693588873669,0.00389,25691.0,25690.0,0.00389]
[1693588873875,1.14085176,25700.0,25694.0,0.6232]
[1693588873876,0.3,25700.0,25694.0,0.6232]
[1693588874071,0.3,25700.0,25699.0,0.6232]
[1693588874072,0.02,25700.0,25699.0,0.6232]
[1693588874272,0.13309677,25700.0,25699.0,0.6232]
[1693588874864,0.47009677,25700.0,25699.0,0.6232]
[1693588875272,0.27947491,25700.0,25699.0,0.6232]
[1693588875471,0.17009677,25700.0,25699.0,0.6262]
[1693588875674,0.057,25700.0,25699.0,0.6262]
[1693588875869,0.037,25700.0,25699.0,0.6422]
[1693588876071,0.037,25700.0,25699.0,0.7278405]
[1693588876778,0.074,25700.0,25699.0,0.7308405]
[1693588876978,0.037,25700.0,25699.0,0.7118405]
[1693588877282,0.074,25700.0,25699.0,0.0916405]
[1693588877473,0.037,25700.0,25699.0,1.0472]
[1693588877775,0.074,25700.0,25699.0,1.0342]
[1693588877976,0.31647491,25700.0,25699.0,1.0342]
[1693588878380,0.074,25700.0,25699.0,1.0342]
[1693588878674,0.074,25700.0,25699.0,1.0502]
[1693588878900,0.074,25700.0,25699.0,1.1198405]
[1693588879579,0.074,25700.0,25699.0,1.1376405]
[1693588879776,0.074,25700.0,25699.0,1.1216405]
[1693588880674,0.074,25700.0,25699.0,1.1376405]
[1693588880977,0.074,25700.0,25699.0,1.1216405]
[1693588881774,0.074,25700.0,25699.0,1.1376405]
[1693588882482,0.074,25700.0,25699.0,1.1216405]
[1693588882875,0.074,25700.0,25699.0,1.1376405]
[1693588883674,0.074,25700.0,25699.0,1.1216405]
[1693588883885,0.20709677,25700.0,25699.0,1.03500725]
[1693588884976,0.31647491,25700.0,25699.0,1.03500725]
[1693588885189,0.31647491,25700.0,25699.0,0.00680725]
[1693588885380,0.61647491,25700.0,25699.0,0.00612653]
[1693588885677,0.61647491,25700.0,25695.0,1.0282]
[1693588885883,0.394,25700.0,25695.0,1.0282]
[1693588886886,0.357,25700.0,25695.0,1.0312]
[1693588887080,1.2,25698.0,25695.0,0.003]
[1693588887284,1.2,25698.0,25695.0,0.006]
[1693588887285,0.22247491,25697.0,25695.0,0.006]
[1693588887587,0.02,25697.0,25695.0,0.006]
[1693588887778,0.22247491,25696.0,25695.0,0.006]
[1693588887979,0.02,25696.0,25695.0,0.006]
[1693588888183,0.036,25698.0,25695.0,0.12009677]
[1693588888386,0.02373764,25697.0,25695.0,0.007]
[1693588888580,0.056,25698.0,25695.0,0.007]
[1693588888782,0.13683441,25697.0,25695.0,0.007]
[1693588888972,0.056,25698.0,25695.0,0.007]
[1693588889179,0.085,25698.0,25695.0,0.007]
[1693588889387,0.13683441,25697.0,25695.0,0.007]
[1693588889590,0.085,25698.0,25695.0,0.007]
[1693588889885,0.033,25696.0,25695.0,0.006]
[1693588890189,0.033,25696.0,25689.0,0.1545]
[1693588890190,2.2812,25696.0,25688.0,0.3]
[1693588890381,1.0282,25694.0,25688.0,0.3]
[1693588890581,1.0482,25694.0,25688.0,0.3]
[1693588891182,0.0318559,25692.0,25688.0,0.3]
[1693588891387,0.13683441,25691.0,25688.0,0.3]
[1693588891587,0.02,25691.0,25688.0,0.3]
[1693588891787,0.0318559,25692.0,25688.0,0.30389]
[1693588891788,0.13683441,25690.0,25688.0,0.30389]
[1693588891993,0.0318559,25692.0,25688.0,0.30389]
[1693588892195,0.0518559,25692.0,25688.0,0.30389]
[1693588892386,0.13683441,25691.0,25688.0,0.30389]
[1693588892583,0.0518559,25692.0,25688.0,0.003]
[1693588892783,0.0518559,25692.0,25685.0,1.03209]
[1693588892784,0.13683441,25691.0,25685.0,1.03209]
[1693588893092,1.0282,25689.0,25688.0,0.003]
[1693588893278,1.2158422,25689.0,25688.0,0.006]
[1693588893683,1.1958422,25689.0,25688.0,0.006]
[1693588893879,1.2158422,25689.0,25688.0,0.003]
[1693588894088,1.2328422,25689.0,25688.0,0.003]
[1693588894289,1.2528422,25689.0,25688.0,0.003]
[1693588894895,1.2328422,25689.0,25688.0,0.003]
[1693588895197,1.2638422,25689.0,25688.0,0.006]
[1693588895989,2.4838422,25689.0,25688.0,0.006]
[1693588896194,2.4468422,25689.0,25688.0,0.003]
[1693588896387,2.4838422,25689.0,25688.0,0.006]
[1693588897087,2.54139401,25689.0,25688.0,0.006]
[1693588897291,2.51039401,25689.0,25688.0,0.003]
[1693588897491,1.49319401,25689.0,25688.0,0.006]
[1693588898090,1.46219401,25689.0,25688.0,0.003]
[1693588898297,1.49319401,25689.0,25688.0,0.006]
[1693588900788,1.42519401,25689.0,25683.0,1.0282]
[1693588900996,1.3563596,25689.0,25688.0,0.006]
[1693588901302,2.52139401,25689.0,25688.0,0.006]
[1693588902295,2.13689401,25689.0,25688.0,0.006]
[1693588902785,2.28944126,25689.0,25688.0,0.003]
[1693588903590,2.10589401,25689.0,25688.0,0.003]
[1693588903890,2.13689401,25689.0,25688.0,0.006]
[1693588904293,0.00389,25683.0,25680.0,0.59978942]
[1693588904500,0.13683441,25682.0,25680.0,0.6797]
[1693588904687,0.00389,25683.0,25680.0,0.6797]
[1693588904893,0.13683441,25682.0,25680.0,0.6797]
[1693588905086,0.00389,25682.0,25680.0,0.6797]
[1693588905292,0.00389,25681.0,25680.0,0.056]
[1693588905495,0.14072441,25681.0,25680.0,0.056]
[1693588905894,0.14072441,25681.0,25680.0,0.083]
[1693588906294,0.14072441,25681.0,25680.0,0.102]
[1693588906494,0.14072441,25681.0,25680.0,0.075]
[1693588906697,0.14372441,25681.0,25680.0,0.093]
[1693588906896,0.14672441,25681.0,25680.0,0.122]
[1693588907102,0.14672441,25681.0,25680.0,0.091]
[1693588907904,0.17972441,25681.0,25680.0,0.065]
[1693588908603,0.21072441,25681.0,25680.0,0.031]
[1693588909200,0.21072441,25681.0,25680.0,0.011]
[1693588909392,0.21072441,25681.0,25680.0,0.017]
[1693588909393,0.14072441,25681.0,25680.0,0.017]
[1693588909600,0.21072441,25681.0,25680.0,0.02]
[1693588910102,0.20683441,25681.0,25680.0,0.006]
[1693588911103,0.07,25681.0,25680.0,0.6297]
[1693588911312,0.07,25681.0,25680.0,0.6497]
[1693588911607,0.07,25681.0,25680.0,0.76279677]
[1693588911791,0.07,25681.0,25680.0,0.87217491]
[1693588912193,0.07,25681.0,25680.0,0.86917491]
[1693588912393,0.07,25681.0,25680.0,0.87217491]
[1693588912891,0.07,25681.0,25680.0,0.86917491]
[1693588913091,0.048,25681.0,25680.0,0.87017491]
[1693588913510,0.012,25681.0,25680.0,0.86717491]
[1693588913802,0.047,25681.0,25680.0,0.87017491]
[1693588914198,0.015,25681.0,25680.0,0.89617491]
[1693588914998,0.006,25681.0,25680.0,0.93217491]
[1693588915405,0.05973379,25685.0,25680.0,0.93217491]
[1693588915604,0.03053592,25684.0,25682.0,0.6237]
[1693588915799,0.05427356,25684.0,25683.0,0.11309677]
[1693588915998,0.05427356,25684.0,25683.0,0.02]
[1693588916601,0.16737033,25684.0,25683.0,0.02]
[1693588916903,0.16737033,25684.0,25683.0,0.6437]
[1693588917503,0.14363269,25684.0,25683.0,0.6237]
[1693588917895,0.03053592,25684.0,25683.0,0.6257]
[1693588918095,0.03053592,25684.0,25683.0,0.73879677]
[1693588918096,0.05153592,25684.0,25683.0,0.73879677]
[1693588918608,0.05153592,25684.0,25683.0,0.84917491]
[1693588919506,0.18837033,25684.0,25683.0,0.6267]
[1693588920413,0.19226033,25684.0,25683.0,0.6267]
[1693588920711,0.70512592,25684.0,25680.0,0.6237]
[1693588920903,0.13683441,25683.0,25680.0,0.6237]
[1693588921214,0.70512592,25684.0,25680.0,0.6237]
[1693588921415,0.13683441,25683.0,25680.0,0.6237]
[1693588921616,0.69312592,25684.0,25683.0,0.003]
[1693588921808,0.85596033,25684.0,25683.0,0.00689]
[1693588922114,0.86796033,25684.0,25683.0,0.00789]
[1693588922512,0.07753592,25684.0,25683.0,0.004]
[1693588922720,0.07753592,25684.0,25683.0,0.63159]
[1693588923014,0.05735415,25688.0,25685.0,0.3]
[1693588923213,0.05735415,25688.0,25687.0,0.6237]
[1693588923409,0.00389,25691.0,25687.0,0.6437]
[1693588923719,0.00389,25691.0,25690.0,0.6237]
[1693588923923,0.00389,25689.0,25687.0,0.6237]
[1693588924416,0.17383441,25688.0,25687.0,0.6267]
[1693588925010,0.13683441,25688.0,25687.0,0.6267]
[1693588925208,0.14283441,25688.0,25687.0,0.6297]
[1693588925404,0.11909677,25688.0,25687.0,0.6297]
[1693588925811,0.06462764,25689.0,25688.0,0.00389]
[1693588925812,0.037,25689.0,25688.0,0.00389]
[1693588926916,0.13683441,25689.0,25688.0,0.6237]
[1693588927114,0.13198677,25689.0,25688.0,0.002]
[1693588927317,0.15198677,25689.0,25688.0,0.002]
[1693588927514,0.21272441,25689.0,25688.0,0.005]
[1693588928122,0.18872441,25689.0,25688.0,0.003]
[1693588928422,0.17972441,25689.0,25688.0,0.001]
[1693588928622,0.16572441,25689.0,25688.0,0.001]
[1693588929614,0.00389,25688.0,25686.0,0.1503]
[1693588929817,0.11309677,25687.0,25686.0,0.1503]
[1693588930327,0.13683441,25687.0,25686.0,0.1503]
[1693588930520,0.11309677,25687.0,25686.0,0.1503]
[1693588930828,0.11309677,25687.0,25686.0,0.1633]
[1693588931228,0.00489,25688.0,25686.0,0.38577491]
[1693588931424,0.01089,25688.0,25686.0,0.38577491]
[1693588931622,0.01089,25688.0,25686.0,0.29167814]
[1693588931825,0.002,25687.0,25686.0,0.2083]
[1693588932429,0.002,25687.0,25686.0,1.04247491]
[1693588932632,0.002,25687.0,25686.0,1.07947491]
[1693588933529,0.00589,25687.0,25686.0,0.837]
[1693588933833,0.65559,25687.0,25686.0,0.1821493]
[1693588934128,0.79242441,25687.0,25686.0,0.1821493]
[1693588934325,0.79342441,25687.0,25686.0,0.1821493]
[1693588934527,0.79342441,25687.0,25686.0,0.0927398]
[1693588934731,0.79342441,25687.0,25679.0,0.3]
[1693588934732,0.00389,25681.0,25679.0,0.3]
[1693588935027,0.76442441,25680.0,25679.0,0.30389]
[1693588936033,0.77042441,25680.0,25679.0,0.34089]
[1693588936330,0.77342441,25680.0,25679.0,0.37789]
[1693588936826,0.77042441,25680.0,25679.0,0.34489]
[1693588937032,0.80642441,25680.0,25679.0,0.34489]
[1693588937330,0.80642441,25680.0,25679.0,0.341]
[1693588937928,0.03989,25680.0,25679.0,1.15406491]
[1693588938133,0.05389,25680.0,25679.0,1.15506491]
[1693588938524,0.05,25680.0,25679.0,1.17506491]
[1693588938722,0.036,25680.0,25679.0,1.25156023]
[1693588938936,0.00389,25685.0,25684.0,0.00389]
[1693588939129,0.00389,25685.0,25684.0,0.64759]
[1693588939528,0.03490038,25685.0,25684.0,0.76068677]
[1693588939829,0.14799715,25685.0,25684.0,0.6437]
[1693588940028,0.14799715,25685.0,25684.0,0.6467]
[1693588940029,0.18499715,25685.0,25684.0,0.6467]
[1693588940334,0.06801038,25685.0,25684.0,0.86917491]
[1693588940526,0.037,25685.0,25684.0,1.17306491]
[1693588940724,0.15246688,25691.0,25690.0,0.3]
[1693588940925,0.15246688,25694.0,25690.0,1.5674]
[1693588941220,0.15246688,25694.0,25693.0,0.92759]
[1693588941421,0.15246688,25695.0,25693.0,0.9437]
[1693588941625,0.15635688,25696.0,25694.0,0.6237]
[1693588941831,0.15635688,25696.0,25695.0,0.62759]
[1693588942334,0.00389,25695.0,25694.0,0.00389]
[1693588942531,0.00989,25695.0,25694.0,0.00389]
[1693588942736,0.12298677,25695.0,25694.0,0.00389]
[1693588943437,0.14672441,25695.0,25694.0,0.00389]
[1693588943728,0.15072441,25695.0,25694.0,0.00389]
[1693588943929,0.12698677,25695.0,25694.0,0.00389]
[1693588944334,0.01,25695.0,25694.0,0.11326814]
[1693588944531,0.00989,25695.0,25694.0,0.00389]
[1693588944736,0.02489,25695.0,25694.0,0.00789]
[1693588944928,0.02489,25695.0,25694.0,0.004]
[1693588945129,0.16172441,25695.0,25694.0,0.004]
[1693588945635,0.18072441,25695.0,25694.0,0.006]
[1693588946033,0.15698677,25695.0,25694.0,0.006]
[1693588946335,0.18072441,25695.0,25694.0,0.006]
[1693588946639,0.18072441,25695.0,25694.0,0.003]
[1693588947139,0.00389,25694.0,25693.0,0.92759]
[1693588947330,0.14672441,25694.0,25693.0,0.62759]
[1693588947525,0.00389,25692.0,25691.0,0.16759]
[1693588947735,0.00389,25691.0,25690.0,0.00389]
[1693588948032,0.00389,25690.0,25689.0,0.00389]
[1693588948242,0.02389,25690.0,25689.0,0.00389]
[1693588948629,0.00389,25689.0,25688.0,0.6237]
[1693588948836,0.00389,25689.0,25688.0,0.73679677]
[1693588949040,0.00389,25690.0,25689.0,0.00389]
[1693588949233,0.00389,25690.0,25689.0,0.62759]
[1693588949436,0.00389,25690.0,25689.0,0.85006491]
[1693588950836,0.00589,25690.0,25689.0,0.92406491]
[1693588951035,0.00589,25690.0,25689.0,0.81079677]
[1693588951230,0.01189,25690.0,25689.0,0.6977]
[1693588951432,0.01389,25690.0,25689.0,0.6277]
[1693588951636,0.03789,25690.0,25689.0,0.6277]
[1693588951944,0.03389,25690.0,25689.0,0.6627]
[1693588952330,0.01189,25690.0,25689.0,0.70159]
[1693588952736,0.01189,25690.0,25689.0,0.81468677]
[1693588953038,0.01189,25690.0,25689.0,0.07789]
[1693588953433,0.15272441,25690.0,25689.0,0.037]
[1693588953634,0.79642441,25690.0,25689.0,0.037]
[1693588954049,0.79642441,25690.0,25689.0,0.074]
[1693588954050,0.78642441,25690.0,25689.0,0.074]
[1693588954343,1.98642441,25690.0,25689.0,0.074]
[1693588954548,2.13919987,25690.0,25689.0,0.068]
[1693588955342,0.97739374,25690.0,25689.0,0.068]
[1693588955544,0.29181407,25690.0,25689.0,0.068]
[1693588955841,0.13898677,25690.0,25689.0,0.068]
[1693588956543,0.16272441,25690.0,25689.0,0.068]
[1693588956840,0.02589,25690.0,25689.0,0.18109677]
[1693588957044,0.02589,25690.0,25689.0,0.80479677]
[1693588957248,0.02589,25690.0,25689.0,0.91417491]
[1693588957437,0.00589,25690.0,25689.0,0.91417491]
[1693588957935,0.00589,25690.0,25689.0,0.80479677]
[1693588958135,0.002,25690.0,25689.0,0.91806491]
[1693588958338,0.002,25690.0,25689.0,1.23806491]
[1693588962348,0.002,25690.0,25689.0,1.21806491]
[1693588962542,0.002,25690.0,25689.0,1.23806491]
[1693588962746,0.11509677,25690.0,25689.0,0.99559]
[1693588962945,0.002,25690.0,25689.0,1.21806491]
[1693588963839,0.002,25690.0,25689.0,1.23806491]
[1693588965344,0.002,25690.0,25689.0,1.21806491]
[1693588965543,0.002,25690.0,25689.0,1.23806491]
[1693588967642,0.00389,25696.0,25690.0,0.85006491]
[1693588967950,0.02389,25696.0,25695.0,0.6237]
[1693588968250,0.02389,25696.0,25695.0,0.73307814]
[1693588968448,0.00389,25697.0,25696.0,0.00389]
[1693588968642,0.00389,25697.0,25696.0,0.6237]
[1693588968837,0.00389,25697.0,25696.0,0.84617491]
[1693588970150,0.00389,25697.0,25696.0,0.6237]
[1693588970343,0.01589,25697.0,25696.0,0.6247]
[1693588970542,0.17272441,25697.0,25696.0,0.6247]
[1693588970846,0.14898677,25697.0,25696.0,0.6247]
[1693588971152,0.15598677,25697.0,25696.0,0.6247]
[1693588971453,0.04289,25697.0,25696.0,0.6247]
[1693588971641,0.02289,25697.0,25696.0,0.73407814]
[1693588971838,0.04289,25697.0,25696.0,0.73407814]
[1693588972053,0.15598677,25697.0,25696.0,0.6247]
[1693588972756,0.17972441,25697.0,25696.0,0.6247]
[1693588972954,0.17972441,25697.0,25696.0,0.001]
[1693588973350,0.15972441,25697.0,25696.0,0.001]
[1693588973654,0.80342441,25697.0,25696.0,0.001]
[1693588973849,0.80342441,25697.0,25691.0,0.7831]
[1693588973850,0.00389,25692.0,25691.0,0.7831]
[1693588974055,0.00389,25692.0,25691.0,1.00557491]
[1693588974358,0.00389,25695.0,25691.0,1.02557491]
[1693588974547,0.00389,25695.0,25694.0,0.6237]
[1693588975057,0.00389,25695.0,25694.0,0.84617491]
[1693588975756,0.00389,25695.0,25694.0,0.73307814]
[1693588976946,0.00389,25695.0,25694.0,0.6237]
[1693588977142,0.04189,25695.0,25694.0,0.006]
[1693588977347,0.15498677,25695.0,25694.0,0.006]
[1693588977551,0.3516484,25695.0,25694.0,0.006]
[1693588978242,1.0135794,25695.0,25694.0,0.006]
[1693588979254,0.82242441,25695.0,25694.0,0.006]
[1693588979961,1.0135794,25695.0,25694.0,0.006]
[1693588980451,0.82242441,25695.0,25694.0,0.006]
[1693588980646,0.32183847,25695.0,25694.0,0.006]
[1693588980852,0.1947417,25695.0,25694.0,0.006]
[1693588981450,0.30783847,25695.0,25694.0,0.006]
[1693588982459,0.038,25695.0,25694.0,0.76668677]
[1693588982962,0.038,25695.0,25694.0,0.87686491]
[1693588983760,0.038,25695.0,25694.0,0.87297491]
[1693588984658,0.04189,25695.0,25694.0,0.6305]
[1693588985061,0.15498677,25695.0,25694.0,0.6305]
[1693588985460,0.15498677,25695.0,25694.0,0.63439]
[1693588985764,0.16898677,25695.0,25694.0,0.0058]
[1693588985959,0.19272441,25695.0,25694.0,0.0058]
[1693588986166,0.16672441,25695.0,25694.0,0.0028]
[1693588986350,0.17372441,25695.0,25694.0,0.0028]
[1693588986556,0.14998677,25695.0,25694.0,0.0028]
[1693588986755,0.16898677,25695.0,25694.0,0.0048]
[1693588986965,0.17498677,25695.0,25694.0,0.0078]
[1693588987263,0.19872441,25695.0,25694.0,0.0078]
[1693588987565,0.37157611,25695.0,25694.0,0.0078]
[1693588987755,0.21872441,25695.0,25694.0,0.0078]
[1693588987958,0.37157611,25695.0,25694.0,0.0078]
[1693588988562,0.14298677,25695.0,25694.0,0.0038]
[1693588988763,0.006,25695.0,25694.0,0.74448677]
[1693588988963,0.006,25695.0,25694.0,0.76059677]
[1693588989163,0.006,25695.0,25694.0,0.86997491]
[1693588989559,0.006,25695.0,25694.0,0.87386491]
[1693588989766,0.006,25695.0,25694.0,0.86997491]
[1693588989967,0.007,25695.0,25694.0,0.86697491]
[1693588990158,0.007,25695.0,25694.0,0.84697491]
[1693588990561,0.00389,25695.0,25694.0,0.74387814]
[1693588991368,0.00389,25695.0,25694.0,0.85697491]
[1693588991557,0.00389,25696.0,25694.0,0.85697491]
[1693588991868,0.15701505,25698.0,25696.0,0.00389]
[1693588992069,0.15701505,25698.0,25697.0,0.00389]
[1693588992259,0.27011182,25698.0,25697.0,0.10937814]
[1693588992460,0.15701505,25698.0,25697.0,0.11309677]
[1693588992765,0.00389,25697.0,25696.0,0.6237]
[1693588992956,0.15698636,25697.0,25696.0,0.73679677]
[1693588993162,0.31382077,25697.0,25696.0,0.6267]
[1693588993363,0.2938214,25697.0,25696.0,0.6267]
[1693588993665,0.15698699,25697.0,25696.0,0.73679677]
[1693588993860,0.15309699,25697.0,25696.0,0.73679677]
[1693588994163,0.16009699,25697.0,25696.0,0.84817491]
[1693588994759,0.16398699,25697.0,25696.0,0.6257]
[1693588994961,0.18998699,25697.0,25696.0,0.6277]
[1693588995462,0.18998699,25697.0,25696.0,0.63159]
[1693588995463,0.17372441,25697.0,25696.0,0.63159]
[1693588995665,0.14998677,25697.0,25696.0,0.6277]
[1693588995860,0.30307872,25697.0,25696.0,0.6277]
[1693588996274,0.30307872,25697.0,25696.0,0.73707814]
[1693588996471,0.30307872,25697.0,25696.0,0.6277]
[1693588997061,0.18609195,25697.0,25696.0,0.74079677]